fUSD/lending_fUSD_20260529
["ID","MTS","AMOUNT","RATE_DAILY","PERIOD"]
[423302411,1780044261000,-165.38558261,0.00039572,120]
[423302427,1780044262000,-500.0,0.00039572,120]
[423302426,1780044262000,-500.0,0.00039572,120]
[423302425,1780044262000,-500.0,0.00039572,120]
[423302428,1780044262000,-311.69279692,0.00039572,120]
[423302423,1780044262000,-186.4644999,0.00039572,120]
[423302422,1780044262000,-500.0,0.00039572,120]
[423302421,1780044262000,-156.28564917,0.00039572,120]
[423302424,1780044262000,-151.03285894,0.00039572,120]
[423302430,1780044262000,-500.0,0.00039572,120]
[423302429,1780044262000,-500.0,0.00039572,120]
[423302432,1780044262000,-500.0,0.00039572,120]
[423302441,1780044262000,-500.0,0.00039572,120]
[423302439,1780044262000,-160.30867404,0.00039572,120]
[423302438,1780044262000,-500.0,0.00039572,120]
[423302437,1780044262000,-500.0,0.00039572,120]
[423302431,1780044262000,-576.45514522,0.00039572,120]
[423302434,1780044262000,-564.86016494,0.00039572,120]
[423302433,1780044262000,-456.90849426,0.00039572,120]
[423302435,1780044262000,-500.0,0.00039572,120]
[423302440,1780044262000,-500.0,0.00039572,120]
[423302436,1780044262000,-182.1913625,0.00039572,120]
[423302449,1780044263000,-500.0,0.00039572,120]
[423302443,1780044263000,-500.0,0.00039572,120]
[423302442,1780044263000,-500.0,0.00039572,120]
[423302444,1780044263000,-500.0,0.00039572,120]
[423302446,1780044263000,-165.807375,0.00039572,120]
[423302445,1780044263000,-500.0,0.00039572,120]
[423302447,1780044263000,-500.0,0.00039572,120]
[423302448,1780044263000,-500.0,0.00039572,120]
[423302450,1780044263000,-500.0,0.00039572,120]
[423302451,1780044263000,-500.0,0.00039572,120]
[423302452,1780044263000,-500.0,0.00039572,120]
[423302454,1780044263000,-162.55842083,0.00039572,120]
[423302462,1780044263000,-518.09979679,0.00039572,120]
[423302460,1780044263000,-262.07594471,0.00039572,120]
[423302461,1780044263000,-337.35335218,0.00039572,120]
[423302458,1780044263000,-500.0,0.00039572,120]
[423302463,1780044263000,-500.0,0.00039572,120]
[423302457,1780044263000,-500.0,0.00039572,120]
[423302455,1780044263000,-500.0,0.00039572,120]
[423302456,1780044263000,-583.14038386,0.00039572,120]
[423302453,1780044263000,-214.50130713,0.00039572,120]
[423302459,1780044263000,-500.0,0.00039572,120]
[423302472,1780044264000,-500.0,0.00039572,120]
[423302465,1780044264000,-521.43815684,0.00039572,120]
[423302464,1780044264000,-610.62302108,0.00039572,120]
[423302467,1780044264000,-157.2984689,0.00039572,120]
[423302468,1780044264000,-537.20761433,0.00039572,120]
[423302466,1780044264000,-500.0,0.00039572,120]
[423302470,1780044264000,-500.0,0.00039572,120]
[423302469,1780044264000,-500.0,0.00039572,120]
[423302471,1780044264000,-155.17065497,0.00039572,120]
[423302474,1780044264000,-500.0,0.00039572,120]
[423302484,1780044264000,-500.0,0.00039572,120]
[423302475,1780044264000,-500.0,0.00039572,120]
[423302476,1780044264000,-500.0,0.00039572,120]
[423302478,1780044264000,-500.0,0.00039572,120]
[423302477,1780044264000,-500.0,0.00039572,120]
[423302479,1780044264000,-500.0,0.00039572,120]
[423302480,1780044264000,-500.0,0.00039572,120]
[423302481,1780044264000,-500.0,0.00039572,120]
[423302483,1780044264000,-500.0,0.00039572,120]
[423302482,1780044264000,-500.0,0.00039572,120]
[423302485,1780044264000,-500.0,0.00039572,120]
[423302473,1780044264000,-565.03616834,0.00039572,120]
[423302493,1780044265000,-500.0,0.00039572,120]
[423302491,1780044265000,-208.41640963,0.00039572,120]
[423302492,1780044265000,-500.0,0.00039572,120]
[423302489,1780044265000,-500.0,0.00039572,120]
[423302494,1780044265000,-303.81395976,0.00039572,120]
[423302488,1780044265000,-500.0,0.00039572,120]
[423302487,1780044265000,-500.0,0.00039572,120]
[423302486,1780044265000,-500.0,0.00039572,120]
[423302490,1780044265000,-500.0,0.00039572,120]
[423302495,1780044265000,-500.0,0.00039572,120]
[423302507,1780044265000,-596.30741449,0.00039572,120]
[423302496,1780044265000,-500.0,0.00039572,120]
[423302506,1780044265000,-203.90045735,0.00039572,120]
[423302504,1780044265000,-500.0,0.00039572,120]
[423302505,1780044265000,-521.53126722,0.00039572,120]
[423302503,1780044265000,-500.0,0.00039572,120]
[423302497,1780044265000,-500.0,0.00039572,120]
[423302500,1780044265000,-500.0,0.00039572,120]
[423302501,1780044265000,-550.50601472,0.00039572,120]
[423302498,1780044265000,-500.0,0.00039572,120]
[423302499,1780044265000,-500.0,0.00039572,120]
[423302502,1780044265000,-500.0,0.00039572,120]
[423302518,1780044266000,-585.97609677,0.00039572,120]
[423302509,1780044266000,-569.2754446,0.00039572,120]
[423302510,1780044266000,-264.53699614,0.00039572,120]
[423302511,1780044266000,-500.0,0.00039572,120]
[423302512,1780044266000,-500.0,0.00039572,120]
[423302514,1780044266000,-600.20727357,0.00039572,120]
[423302513,1780044266000,-583.20687298,0.00039572,120]
[423302516,1780044266000,-533.05611812,0.00039572,120]
[423302515,1780044266000,-500.0,0.00039572,120]
[423302517,1780044266000,-500.0,0.00039572,120]
[423302508,1780044266000,-500.0,0.00039572,120]
[423302519,1780044266000,-500.0,0.00039572,120]
[423302529,1780044266000,-500.0,0.00039572,120]
[423302528,1780044266000,-500.0,0.00039572,120]
[423302526,1780044266000,-500.0,0.00039572,120]
[423302527,1780044266000,-500.0,0.00039572,120]
[423302520,1780044266000,-500.0,0.00039572,120]
[423302525,1780044266000,-500.0,0.00039572,120]
[423302523,1780044266000,-500.0,0.00039572,120]
[423302522,1780044266000,-500.0,0.00039572,120]
[423302521,1780044266000,-500.0,0.00039572,120]
[423302524,1780044266000,-567.43174523,0.00039572,120]
[423302540,1780044267000,-500.0,0.00039572,120]
[423302530,1780044267000,-500.0,0.00039572,120]
[423302532,1780044267000,-500.0,0.00039572,120]
[423302533,1780044267000,-500.0,0.00039572,120]
[423302534,1780044267000,-500.0,0.00039572,120]
[423302535,1780044267000,-500.0,0.00039572,120]
[423302536,1780044267000,-500.0,0.00039572,120]
[423302538,1780044267000,-500.0,0.00039572,120]
[423302537,1780044267000,-500.0,0.00039572,120]
[423302531,1780044267000,-500.0,0.00039572,120]
[423302539,1780044267000,-500.0,0.00039572,120]
[423302541,1780044267000,-500.0,0.00039572,120]
[423302544,1780044267000,-500.0,0.00039572,120]
[423302545,1780044267000,-441.67495772,0.00039572,120]
[423302543,1780044267000,-500.0,0.00039572,120]
[423302546,1780044267000,-500.0,0.00039572,120]
[423302548,1780044267000,-152.50535851,0.00039572,120]
[423302547,1780044267000,-500.0,0.00039572,120]
[423302549,1780044267000,-500.0,0.00039572,120]
[423302550,1780044267000,-533.43630978,0.00039572,120]
[423302542,1780044267000,-500.0,0.00039572,120]
[423302557,1780044268000,-500.0,0.00039572,120]
[423302556,1780044268000,-500.0,0.00039572,120]
[423302558,1780044268000,-500.0,0.00039572,120]
[423302554,1780044268000,-608.10146221,0.00039572,120]
[423302560,1780044268000,-593.30007685,0.00039572,120]
[423302553,1780044268000,-500.0,0.00039572,120]
[423302552,1780044268000,-500.0,0.00039572,120]
[423302551,1780044268000,-500.0,0.00039572,120]
[423302555,1780044268000,-500.0,0.00039572,120]
[423302559,1780044268000,-500.0,0.00039572,120]
[423302572,1780044268000,-500.0,0.00039572,120]
[423302562,1780044268000,-500.0,0.00039572,120]
[423302564,1780044268000,-500.0,0.00039572,120]
[423302563,1780044268000,-500.0,0.00039572,120]
[423302566,1780044268000,-500.0,0.00039572,120]
[423302565,1780044268000,-500.0,0.00039572,120]
[423302568,1780044268000,-599.10924259,0.00039572,120]
[423302569,1780044268000,-500.0,0.00039572,120]
[423302567,1780044268000,-500.0,0.00039572,120]
[423302570,1780044268000,-500.0,0.00039572,120]
[423302571,1780044268000,-500.0,0.00039572,120]
[423302561,1780044268000,-500.0,0.00039572,120]
[423302582,1780044269000,-500.0,0.00039572,120]
[423302581,1780044269000,-500.0,0.00039572,120]
[423302580,1780044269000,-495.0479209,0.00039572,120]
[423302579,1780044269000,-500.0,0.00039572,120]
[423302573,1780044269000,-500.0,0.00039572,120]
[423302577,1780044269000,-500.0,0.00039572,120]
[423302576,1780044269000,-500.0,0.00039572,120]
[423302575,1780044269000,-500.0,0.00039572,120]
[423302574,1780044269000,-500.0,0.00039572,120]
[423302578,1780044269000,-500.0,0.00039572,120]
[423302583,1780044269000,-500.0,0.00039572,120]
[423302585,1780044269000,-154.90250402,0.00039572,120]
[423302586,1780044269000,-561.2473343,0.00039572,120]
[423302584,1780044269000,-500.0,0.00039572,120]
[423302594,1780044269000,-596.37314028,0.00039572,120]
[423302592,1780044269000,-455.78446401,0.00039572,120]
[423302593,1780044269000,-345.9625668,0.00039572,120]
[423302595,1780044269000,-500.0,0.00039572,120]
[423302590,1780044269000,-500.0,0.00039572,120]
[423302589,1780044269000,-521.45,0.00039572,120]
[423302588,1780044269000,-604.5824383,0.00039572,120]
[423302587,1780044269000,-150.0672269,0.00039572,120]
[423302591,1780044269000,-500.0,0.00039572,120]
[423302596,1780044270000,-527.09978811,0.00039572,120]
[423302597,1780044270000,-288.00682438,0.00039572,120]
[423302598,1780044270000,-500.0,0.00039572,120]
[423302600,1780044270000,-500.0,0.00039572,120]
[423302599,1780044270000,-500.0,0.00039572,120]
[423302602,1780044270000,-500.0,0.00039572,120]
[423302601,1780044270000,-500.0,0.00039572,120]
[423302604,1780044270000,-500.0,0.00039572,120]
[423302608,1780044270000,-500.0,0.00039572,120]
[423302606,1780044270000,-500.0,0.00039572,120]
[423302605,1780044270000,-500.0,0.00039572,120]
[423302607,1780044270000,-500.0,0.00039572,120]
[423302609,1780044270000,-500.0,0.00039572,120]
[423302610,1780044270000,-500.0,0.00039572,120]
[423302611,1780044270000,-500.0,0.00039572,120]
[423302612,1780044270000,-192.00085558,0.00039572,120]
[423302613,1780044270000,-535.08700349,0.00039572,120]
[423302603,1780044270000,-500.0,0.00039572,120]
[423302621,1780044271000,-500.0,0.00039572,120]
[423302619,1780044271000,-518.21892504,0.00039572,120]
[423302620,1780044271000,-500.0,0.00039572,120]
[423302617,1780044271000,-345.81559172,0.00039572,120]
[423302614,1780044271000,-500.0,0.00039572,120]
[423302616,1780044271000,-500.0,0.00039572,120]
[423302615,1780044271000,-574.34321951,0.00039572,120]
[423302622,1780044271000,-500.0,0.00039572,120]
[423302618,1780044271000,-526.37225239,0.00039572,120]
[423302624,1780044271000,-500.0,0.00039572,120]
[423302623,1780044271000,-500.0,0.00039572,120]
[423302626,1780044271000,-232.05706739,0.00039572,120]
[423302625,1780044271000,-500.0,0.00039572,120]
[423302635,1780044271000,-402.78846406,0.00039572,120]
[423302633,1780044271000,-500.0,0.00039572,120]
[423302634,1780044271000,-500.0,0.00039572,120]
[423302631,1780044271000,-500.0,0.00039572,120]
[423302636,1780044271000,-152.99077783,0.00039572,120]
[423302629,1780044271000,-500.0,0.00039572,120]
[423302630,1780044271000,-500.0,0.00039572,120]
[423302628,1780044271000,-500.0,0.00039572,120]
[423302627,1780044271000,-550.11463722,0.00039572,120]
[423302632,1780044271000,-581.90263423,0.00039572,120]
[423302646,1780044272000,-500.0,0.00039572,120]
[423302637,1780044272000,-553.68122091,0.00039572,120]
[423302638,1780044272000,-500.0,0.00039572,120]
[423302639,1780044272000,-500.0,0.00039572,120]
[423302640,1780044272000,-500.0,0.00039572,120]
[423302642,1780044272000,-500.0,0.00039572,120]
[423302641,1780044272000,-500.0,0.00039572,120]
[423302644,1780044272000,-618.57221734,0.00039572,120]
[423302643,1780044272000,-500.0,0.00039572,120]
[423302645,1780044272000,-376.27607458,0.00039572,120]
[423302649,1780044272000,-320.85683945,0.00039572,120]
[423302658,1780044272000,-500.0,0.00039572,120]
[423302648,1780044272000,-500.0,0.00039572,120]
[423302647,1780044272000,-500.0,0.00039572,120]
[423302657,1780044272000,-500.0,0.00039572,120]
[423302655,1780044272000,-623.2121891,0.00039572,120]
[423302656,1780044272000,-500.0,0.00039572,120]
[423302659,1780044272000,-500.0,0.00039572,120]
[423302652,1780044272000,-500.0,0.00039572,120]
[423302653,1780044272000,-500.0,0.00039572,120]
[423302651,1780044272000,-571.66918449,0.00039572,120]
[423302650,1780044272000,-500.0,0.00039572,120]
[423302654,1780044272000,-500.0,0.00039572,120]
[423302668,1780044273000,-500.0,0.00039572,120]
[423302660,1780044273000,-500.0,0.00039572,120]
[423302662,1780044273000,-500.0,0.00039572,120]
[423302661,1780044273000,-500.0,0.00039572,120]
[423302663,1780044273000,-500.0,0.00039572,120]
[423302665,1780044273000,-329.8753775,0.00039572,120]
[423302664,1780044273000,-500.0,0.00039572,120]
[423302667,1780044273000,-220.73,0.00039572,120]
[423302666,1780044273000,-500.0,0.00039572,120]
[423302669,1780044273000,-500.0,0.00039572,120]
[423302681,1780044273000,-500.0,0.00039572,120]
[423302671,1780044273000,-500.0,0.00039572,120]
[423302679,1780044273000,-564.17636867,0.00039572,120]
[423302680,1780044273000,-500.0,0.00039572,120]
[423302678,1780044273000,-216.14010178,0.00039572,120]
[423302677,1780044273000,-500.0,0.00039572,120]
[423302670,1780044273000,-500.0,0.00039572,120]
[423302676,1780044273000,-500.0,0.00039572,120]
[423302674,1780044273000,-500.0,0.00039572,120]
[423302672,1780044273000,-414.80530908,0.00039572,120]
[423302673,1780044273000,-561.21056635,0.00039572,120]
[423302675,1780044273000,-500.0,0.00039572,120]
[423302693,1780044274000,-500.0,0.00039572,120]
[423302684,1780044274000,-346.63120409,0.00039572,120]
[423302685,1780044274000,-500.0,0.00039572,120]
[423302683,1780044274000,-500.0,0.00039572,120]
[423302687,1780044274000,-500.0,0.00039572,120]
[423302686,1780044274000,-500.0,0.00039572,120]
[423302689,1780044274000,-500.0,0.00039572,120]
[423302688,1780044274000,-567.10220097,0.00039572,120]
[423302691,1780044274000,-500.0,0.00039572,120]
[423302690,1780044274000,-540.87405762,0.00039572,120]
[423302682,1780044274000,-500.0,0.00039572,120]
[423302694,1780044274000,-500.0,0.00039572,120]
[423302695,1780044274000,-500.0,0.00039572,120]
[423302696,1780044274000,-500.0,0.00039572,120]
[423302698,1780044274000,-500.0,0.00039572,120]
[423302697,1780044274000,-605.69557421,0.00039572,120]
[423302700,1780044274000,-615.39115791,0.00039572,120]
[423302699,1780044274000,-500.0,0.00039572,120]
[423302701,1780044274000,-500.0,0.00039572,120]
[423302703,1780044274000,-590.50581375,0.00039572,120]
[423302702,1780044274000,-277.2585681,0.00039572,120]
[423302704,1780044274000,-500.0,0.00039572,120]
[423302692,1780044274000,-500.0,0.00039572,120]
[423302713,1780044275000,-500.0,0.00039572,120]
[423302714,1780044275000,-636.94450528,0.00039572,120]
[423302712,1780044275000,-500.0,0.00039572,120]
[423302709,1780044275000,-500.0,0.00039572,120]
[423302705,1780044275000,-500.0,0.00039572,120]
[423302708,1780044275000,-500.0,0.00039572,120]
[423302707,1780044275000,-500.0,0.00039572,120]
[423302706,1780044275000,-500.0,0.00039572,120]
[423302710,1780044275000,-500.0,0.00039572,120]
[423302715,1780044275000,-216.40414026,0.00039572,120]
[423302711,1780044275000,-500.0,0.00039572,120]
[423302718,1780044275000,-500.0,0.00039572,120]
[423302726,1780044275000,-500.0,0.00039572,120]
[423302725,1780044275000,-500.0,0.00039572,120]
[423302724,1780044275000,-500.0,0.00039572,120]
[423302723,1780044275000,-500.0,0.00039572,120]
[423302716,1780044275000,-500.0,0.00039572,120]
[423302721,1780044275000,-500.0,0.00039572,120]
[423302720,1780044275000,-500.0,0.00039572,120]
[423302719,1780044275000,-500.0,0.00039572,120]
[423302717,1780044275000,-500.0,0.00039572,120]
[423302722,1780044275000,-500.0,0.00039572,120]
[423302736,1780044276000,-328.70879122,0.00039572,120]
[423302727,1780044276000,-500.0,0.00039572,120]
[423302730,1780044276000,-500.0,0.00039572,120]
[423302729,1780044276000,-500.0,0.00039572,120]
[423302731,1780044276000,-500.0,0.00039572,120]
[423302732,1780044276000,-500.0,0.00039572,120]
[423302733,1780044276000,-500.0,0.00039572,120]
[423302734,1780044276000,-500.0,0.00039572,120]
[423302735,1780044276000,-500.0,0.00039572,120]
[423302737,1780044276000,-500.0,0.00039572,120]
[423302728,1780044276000,-500.0,0.00039572,120]
[423302739,1780044276000,-528.96431629,0.00039572,120]
[423302740,1780044276000,-500.0,0.00039572,120]
[423302743,1780044276000,-524.50302785,0.00039572,120]
[423302741,1780044276000,-500.0,0.00039572,120]
[423302742,1780044276000,-500.0,0.00039572,120]
[423302744,1780044276000,-500.0,0.00039572,120]
[423302745,1780044276000,-533.05214953,0.00039572,120]
[423302748,1780044276000,-526.23009707,0.00039572,120]
[423302746,1780044276000,-524.75901191,0.00039572,120]
[423302747,1780044276000,-571.14986445,0.00039572,120]
[423302738,1780044276000,-500.0,0.00039572,120]
[423302757,1780044277000,-320.23294947,0.00039572,120]
[423302756,1780044277000,-500.0,0.00039572,120]
[423302755,1780044277000,-500.0,0.00039572,120]
[423302753,1780044277000,-500.00662874,0.00039572,120]
[423302750,1780044277000,-500.0,0.00039572,120]
[423302752,1780044277000,-553.38314886,0.00039572,120]
[423302751,1780044277000,-500.0,0.00039572,120]
[423302749,1780044277000,-640.15189439,0.00039572,120]
[423302759,1780044277000,-222.26443154,0.00039572,120]
[423302754,1780044277000,-500.0,0.00039572,120]
[423302758,1780044277000,-521.81968007,0.00039572,120]
[423302762,1780044277000,-500.0,0.00039572,120]
[423302760,1780044277000,-205.07141064,0.00039572,120]
[423302763,1780044277000,-510.69227976,0.00039572,120]
[423302764,1780044277000,-359.32098777,0.00039572,120]
[423302766,1780044277000,-512.94719947,0.00039572,120]
[423302765,1780044277000,-474.72107101,0.00039572,120]
[423302768,1780044277000,-200.13318482,0.00039572,120]
[423302767,1780044277000,-500.0,0.00039572,120]
[423302769,1780044277000,-820.91,0.00039572,120]
[423302770,1780044277000,-512.13880721,0.00039572,120]
[423302771,1780044277000,-512.62426285,0.00039572,120]
[423302761,1780044277000,-160.33292458,0.00039572,120]
[423302772,1780044278000,-500.0,0.00039572,120]
[423302773,1780044278000,-500.0,0.00039572,120]
[423302774,1780044278000,-500.0,0.00039572,120]
[423302776,1780044278000,-500.0,0.00039572,120]
[423302778,1780044278000,-500.0,0.00039572,120]
[423302777,1780044278000,-500.0,0.00039572,120]
[423302780,1780044278000,-500.0,0.00039572,120]
[423302779,1780044278000,-500.0,0.00039572,120]
[423302775,1780044278000,-500.0,0.00039572,120]
[423302781,1780044279000,-500.0,0.00039572,120]
[423302782,1780044279000,-341.21402188,0.00039572,120]
[423302783,1780044279000,-500.0,0.00039572,120]
[423302784,1780044279000,-500.0,0.00039572,120]
[423302785,1780044279000,-500.0,0.00039572,120]
[423302786,1780044279000,-500.0,0.00039572,120]
[423302788,1780044279000,-500.0,0.00039572,120]
[423302789,1780044279000,-205.16196136,0.00039572,120]
[423302790,1780044279000,-532.9914059,0.00039572,120]
[423302787,1780044279000,-500.0,0.00039572,120]
[423302791,1780044279000,-500.0,0.00039572,120]
[423302793,1780044279000,-500.0,0.00039572,120]
[423302794,1780044279000,-500.0,0.00039572,120]
[423302795,1780044279000,-558.8,0.00039572,120]
[423302796,1780044279000,-500.0,0.00039572,120]
[423302798,1780044279000,-558.8,0.00039572,120]
[423302797,1780044279000,-558.8,0.00039572,120]
[423302799,1780044279000,-558.8,0.00039572,120]
[423302800,1780044279000,-558.8,0.00039572,120]
[423302792,1780044279000,-196.11737399,0.00039572,120]
[423302801,1780044279000,-558.8,0.00039572,120]
[423302809,1780044280000,-558.8,0.00039572,120]
[423302808,1780044280000,-500.0,0.00039572,120]
[423302807,1780044280000,-558.8,0.00039572,120]
[423302806,1780044280000,-500.0,0.00039572,120]
[423302802,1780044280000,-500.0,0.00039572,120]
[423302805,1780044280000,-558.8,0.00039572,120]
[423302803,1780044280000,-558.8,0.00039572,120]
[423302810,1780044280000,-558.8,0.00039572,120]
[423302804,1780044280000,-500.0,0.00039572,120]
[423302811,1780044280000,-558.8,0.00039572,120]
[423302820,1780044280000,-558.8,0.00039572,120]
[423302813,1780044280000,-558.8,0.00039572,120]
[423302814,1780044280000,-500.0,0.00039572,120]
[423302815,1780044280000,-558.8,0.00039572,120]
[423302816,1780044280000,-157.20605973,0.00039572,120]
[423302817,1780044280000,-558.8,0.00039572,120]
[423302818,1780044280000,-558.8,0.00039572,120]
[423302819,1780044280000,-444.7344842,0.00039572,120]
[423302822,1780044280000,-558.8,0.00039572,120]
[423302821,1780044280000,-558.8,0.00039572,120]
[423302812,1780044280000,-500.0,0.00039572,120]
[423302832,1780044281000,-500.0,0.00039572,120]
[423302829,1780044281000,-284.43908853,0.00039572,120]
[423302828,1780044281000,-268.88862712,0.00039572,120]
[423302824,1780044281000,-558.8,0.00039572,120]
[423302826,1780044281000,-558.8,0.00039572,120]
[423302825,1780044281000,-558.8,0.00039572,120]
[423302823,1780044281000,-558.8,0.00039572,120]
[423302827,1780044281000,-558.9235091,0.00039572,120]
[423302831,1780044281000,-500.0,0.00039572,120]
[423302830,1780044281000,-189.95724225,0.00039572,120]
[423302833,1780044281000,-500.0,0.00039572,120]
[423302842,1780044281000,-500.0,0.00039572,120]
[423302841,1780044281000,-236.3052138,0.00039572,120]
[423302840,1780044281000,-500.0,0.00039572,120]
[423302839,1780044281000,-500.0,0.00039572,120]
[423302834,1780044281000,-522.73428059,0.00039572,120]
[423302837,1780044281000,-276.12176642,0.00039572,120]
[423302836,1780044281000,-500.0,0.00039572,120]
[423302835,1780044281000,-196.88691921,0.00039572,120]
[423302838,1780044281000,-500.0,0.00039572,120]
[423302851,1780044282000,-228.07083053,0.00039572,120]
[423302843,1780044282000,-500.0,0.00039572,120]
[423302844,1780044282000,-172.53826054,0.00039572,120]
[423302846,1780044282000,-180.57489636,0.00039572,120]
[423302845,1780044282000,-234.92590869,0.00039572,120]
[423302848,1780044282000,-498.9151797,0.00039572,120]
[423302847,1780044282000,-198.65763719,0.00039572,120]
[423302850,1780044282000,-247.53255733,0.00039572,120]
[423302849,1780044282000,-219.0379016,0.00039572,120]
[423302852,1780044282000,-254.19145886,0.00039572,120]
[423302856,1780044282000,-183.44527797,0.00039572,120]
[423302855,1780044282000,-175.88494367,0.00039572,120]
[423302863,1780044282000,-500.0,0.00039572,120]
[423302861,1780044282000,-169.33591598,0.00039572,120]
[423302860,1780044282000,-202.15348243,0.00039572,120]
[423302858,1780044282000,-190.52831146,0.00039572,120]
[423302862,1780044282000,-433.34484844,0.00039572,120]
[423302857,1780044282000,-203.02583728,0.00039572,120]
[423302854,1780044282000,-500.0,0.00039572,120]
[423302859,1780044282000,-334.47766903,0.00039572,120]
[423302853,1780044282000,-500.0,0.00039572,120]
[423302883,1780044283000,-500.0,0.00039572,120]
[423302864,1780044283000,-500.0,0.00039572,120]
[423302865,1780044283000,-500.0,0.00039572,120]
[423302866,1780044283000,-168.58725539,0.00039572,120]
[423302867,1780044283000,-500.0,0.00039572,120]
[423302869,1780044283000,-214.31782163,0.00039572,120]
[423302870,1780044283000,-180.07634073,0.00039572,120]
[423302871,1780044283000,-193.67983276,0.00039572,120]
[423302873,1780044283000,-500.0,0.00039572,120]
[423302868,1780044283000,-500.0,0.00039572,120]
[423302874,1780044283000,-500.0,0.00039572,120]
[423302872,1780044283000,-500.0,0.00039572,120]
[423302881,1780044283000,-495.9470012,0.00039572,120]
[423302879,1780044283000,-500.0,0.00039572,120]
[423302880,1780044283000,-500.0,0.00039572,120]
[423302882,1780044283000,-452.39384,0.00039572,120]
[423302877,1780044283000,-500.0,0.00039572,120]
[423302876,1780044283000,-500.0,0.00039572,120]
[423302875,1780044283000,-500.0,0.00039572,120]
[423302878,1780044283000,-500.0,0.00039572,120]
[423302892,1780044284000,-500.0,0.00039572,120]
[423302884,1780044284000,-582.0441,0.00039572,120]
[423302885,1780044284000,-500.0,0.00039572,120]
[423302886,1780044284000,-500.0,0.00039572,120]
[423302888,1780044284000,-500.0,0.00039572,120]
[423302887,1780044284000,-500.0,0.00039572,120]
[423302889,1780044284000,-500.0,0.00039572,120]
[423302890,1780044284000,-500.0,0.00039572,120]
[423302891,1780044284000,-500.0,0.00039572,120]
[423302893,1780044284000,-500.0,0.00039572,120]
[423302899,1780044284000,-505.42436985,0.00039572,120]
[423302895,1780044284000,-493.600583,0.00039572,120]
[423302894,1780044284000,-500.0,0.00039572,120]
[423302904,1780044284000,-1401.7098,0.00039572,120]
[423302903,1780044284000,-292.42237925,0.00039572,120]
[423302901,1780044284000,-193.3429412,0.00039572,120]
[423302902,1780044284000,-253.28585982,0.00039572,120]
[423302905,1780044284000,-500.0,0.00039572,120]
[423302898,1780044284000,-213.63662477,0.00039572,120]
[423302896,1780044284000,-155.7709178,0.00039572,120]
[423302897,1780044284000,-201.37860012,0.00039572,120]
[423302900,1780044284000,-188.49488336,0.00039572,120]
[423302914,1780044285000,-500.0,0.00039572,120]
[423302906,1780044285000,-254.25218948,0.00039572,120]
[423302907,1780044285000,-473.12034069,0.00039572,120]
[423302908,1780044285000,-306.98483834,0.00039572,120]
[423302910,1780044285000,-260.27194212,0.00039572,120]
[423302911,1780044285000,-182.77243423,0.00039572,120]
[423302912,1780044285000,-334.49165701,0.00039572,120]
[423302913,1780044285000,-262.10088304,0.00039572,120]
[423302915,1780044285000,-500.0,0.00039572,120]
[423302916,1780044285000,-500.0,0.00039572,120]
[423302909,1780044285000,-491.44981015,0.00039572,120]
[423302918,1780044285000,-500.0,0.00039572,120]
[423302926,1780044285000,-159.0727549,0.00039572,120]
[423302925,1780044285000,-376.54513938,0.00039572,120]